Cogmind - Beta 14 @@@ ROGUE MODE // 2024.10.17 @ 23:24:06 Player: WazdakkaGutsmek Result: Self-destructed Performance ------------- Evolutions (1) 500 Regions Visited (2) 400 Robots Destroyed (26) 130 Value Destroyed (475) 475 Prototype IDs (0) 0 Alien Tech Used (0) 0 Bonus (22) 22 TOTAL SCORE: 1527 Bonus ------- High Alert Combat Kills 22 Cogmind --------- Core Integrity 137/400 Matter 290/300 Energy 265/265 System Corruption 10% Temperature Cool (0) Movement Core (500) Ox9 Location -9/Materials Parts ------- > --- POWER (1) -------- Improved Ion Engine > --- PROPULSION (2) --- (None) > --- UTILITY (4) ------ Large Storage Unit Visual Processing Unit > --- WEAPON (2) ------- Spread Laser > --- INVENTORY (15) --- Heat Sink Melee Analysis Suite Melee Analysis Suite Peak State ------------ > --- POWER ------------ Light Ion Engine > --- PROPULSION ------- Light Treads Light Treads > --- UTILITY ---------- Heat Sink Large Storage Unit Visual Processing Unit Hardened Medium Armor Plating > --- WEAPON ----------- Spread Laser Spread Laser > --- INVENTORY -------- Melee Analysis Suite Melee Analysis Suite Hardened Medium Armor Plating Hardened Medium Armor Plating Hardened Medium Armor Plating Pulse Rifle Pulse Rifle [Rating: 16] Favorites ----------- Power Light Ion Engine Engine Light Ion Engine Propulsion Light Treads Treads Light Treads Leg Aluminum Leg Utility Large Storage Unit Device Heat Sink Storage Large Storage Unit Processor Visual Processing Unit Protection Hardened Medium Armor Plating Weapon Spread Laser Energy Gun Spread Laser Ballistic Gun Assault Rifle Build | -11 -10 -9 ------- Run | Yrd Mat Mat Slots Evolved 2 | . . 2 Power . | . . . Propulsion . | . . . Utility 2 | . . 2 Weapon . | . . . Parts Attached 23 | . 4 19 Power 3 | . . 3 Engine 3 | . . 3 Core . | . . . Reactor . | . . . Propulsion 5 | . 2 3 Treads 5 | . 2 3 Leg . | . . . Wheel . | . . . Hover . | . . . Flight . | . . . Utility 8 | . 1 7 Device 2 | . . 2 Storage 1 | . 1 . Processor 1 | . . 1 Hackware . | . . . Protection 4 | . . 4 Artifact . | . . . Weapon 7 | . 1 6 Energy Gun 6 | . . 6 Energy Cannon . | . . . Ballistic Gun 1 | . 1 . Ballistic Cannon . | . . . Launcher . | . . . Special Weapon . | . . . Impact Weapon . | . . . Slashing Weapon . | . . . Piercing Weapon . | . . . Special Melee Weapon . | . . . Unidentified Prototypes . | . . . Parts Lost 8 | . . 8 Power 2 | . . 2 Propulsion 2 | . . 2 Utility 2 | . . 2 Weapon 2 | . . 2 Highest Loss Streak 4 | . . 4 To Critical Strikes . | . . . Average Slot Usage (%) 86 | . 97 83 Engine 9 | . 14 8 Treads 19 | . 24 18 Device 5 | . . 6 Storage 15 | . 26 13 Processor 6 | . . 7 Protection 8 | . . 10 Energy Gun 19 | . 24 18 Peak Build Rating 16 | 6 7 16 Average Rating 10 | 6 6 11 On Entrance 6 | 6 6 7 Naked Turns . | . . . Heaviest Build 39 | 11 32 39 Greatest Support 40 | 20 40 40 Greatest Overweight (x) 10 | . 1 10 Average Overweight (x) . | . . . Largest Inventory Capacity 15 | 8 15 15 Average Capacity 14 | 8 14 15 Most Carried 8 | 6 6 8 Average Carried 4 | 6 4 4 Final Capacity 15 | 8 15 15 Final Carried 6 | 6 3 3 Class Distribution -------------------- 69% | Mutant 30% | Scavenger-Mutant Dominant Class ---------------- Mutant | -10/Materials Mutant | -9/Materials Resources | -11 -10 -9 ----------- Run | Yrd Mat Mat Matter Collected 489 | 200 55 234 Remotely . | . . . Salvage Created 682 | . 166 516 Parts 48 | . 12 36 Haulers Intercepted . | . . . Recyclers Shooed . | . . . Parts Field Recycled . | . . . Retrieved Matter . | . . . Parts Self-Destructed . | . . . Prevented . | . . . Kills | -11 -10 -9 ------- Run | Yrd Mat Mat Combat Hostiles Destroyed 19 | . 5 14 Guns 19 | . 5 14 Classes Destroyed 6 | . 3 3 Worker 4 | . . 4 Recycler 2 | . . 2 Watcher 1 | . 1 . Swarmer 12 | . 3 9 Grunt 2 | . 2 . Sentry 5 | . . 5 Best Kill Streak 7 | . 6 7 Combat Bots Only 7 | . 5 7 Max Kills in Single Turn 3 | . 1 3 Gunslinging . | . . . Exploded . | . . . Melee . | . . . Uniques/NPCs Destroyed . | . . . Combat | -11 -10 -9 -------- Run | Yrd Mat Mat Hostile Shots Fired 173 | . 27 146 Missed 38 | . 8 30 Damage Taken 1617 | . 164 1453 Core 263 | . . 263 Absorbed by Shields . | . . . Redirected to Shielding 6 | . . 6 Core Remaining (%) 100 | 100 100 . Volleys Fired 68 | . 20 48 Largest 2 | . 2 2 Hottest 130 | . 80 130 Shots Fired 112 | . 31 81 Gun 112 | . 31 81 Cannon . | . . . Launcher . | . . . Special . | . . . Kinetic 5 | . 5 . Thermal 87 | . 6 81 Explosive . | . . . Electromagnetic 20 | . 20 . Robot Hit Streak 11 | . 5 11 Robot Miss Streak 10 | . 2 10 Penetration Max . | . . . Secondary Targets 2 | . . 2 Max Gunslinging Chain 1 | . . 1 Shots Hit Robots 90 | . 17 73 Core Hits 90 | . 7 83 Critical Kills . | . . . Critical Parts Destroyed . | . . . Critical Strikes 1 | . 1 . Corrupt 1 | . 1 . Melee Attacks . | . . . Impact . | . . . Slashing . | . . . Piercing . | . . . Sneak Attacks . | . . . Combat Hostiles . | . . . Follow-up Attacks . | . . . Damage Inflicted 1301 | . 268 1033 Guns 1080 | . 268 812 Cannons . | . . . Explosions 149 | . . 149 Melee . | . . . Ramming 72 | . . 72 Kinetic 25 | . 25 . Thermal 834 | . 22 812 Explosive . | . . . Electromagnetic 370 | . 221 149 Impact . | . . . Slashing . | . . . Piercing . | . . . Highest Corruption 10 | . . 10 Average Corruption 8 | . . 8 Corruption Purged . | . . . Corruption Blocked . | . . . Effects 15 | . . 15 Matter Fused 6 | . . 6 Heat Flow Errors 4 | . . 4 Parts Rejected 1 | . . 1 Data Loss (minor) 2 | . . 2 Alerts 1 | . . 1 Weapon Failures 1 | . . 1 Overload Shots . | . . . Overflow Damage . | . . . Projectiles . | . . . Explosions . | . . . Melee . | . . . Knockbacks . | . . . Impact . | . . . Kinetic . | . . . Secondary . | . . . Self-Inflicted Damage 84 | . . 84 Shots 2 | . . 2 Rammed 24 | . . 24 Targets Rammed 24 | . . 24 Kicked . | . . . Crushed . | . . . Highest Temperature 598 | . 66 598 Average Temperature 169 | . 31 200 Received Heat Transfer 510 | . 18 492 Effects 16 | . . 16 Shutdowns 4 | . . 4 Interference 2 | . . 2 Matter Decay 1 | . . 1 Short Circuit 1 | . . 1 Damage (minor) 2 | . . 2 Damage (major) 6 | . . 6 Siege Activations . | . . . Robots Corrupted . | . . . Combat Hostiles . | . . . Parts Fried 1 | . 1 . Impact Corruptions . | . . . Robots Melted . | . . . Combat Hostiles . | . . . Parts Melted . | . . . Heat Transferred 1129 | . 50 1079 Parts Sabotaged . | . . . Parts Stolen . | . . . Parts Stripped . | . . . Power Chain Reactions . | . . . Alert | -11 -10 -9 ------- Run | Yrd Mat Mat Peak Influence 437 | . 157 437 Initial 66 | . . 66 Average 240 | . 64 275 Maximum Alert Level 2 | . . 2 Low Security (%) 28 | 100 100 14 Level 1 56 | . . 67 Level 2 15 | . . 18 Level 3 . | . . . Level 4 . | . . . Level 5 . | . . . High Security . | . . . Max Security . | . . . Squads Dispatched 2 | . 1 1 Investigation 1 | . . 1 Extermination . | . . . Reinforcement 1 | . 1 . Assault . | . . . Garrison . | . . . Intercept . | . . . Searches Triggered . | . . . Construction Impeded . | . . . Haulers Reinforced . | . . . Active Scanning Responses . | . . . Cargo Convoy Interrupts . | . . . Stealth | -11 -10 -9 --------- Run | Yrd Mat Mat Distress Signals 3 | . 1 2 Communications Jammed . | . . . Distress Signals . | . . . Times Spotted 34 | . 8 26 Peak Tracking Total 7 | . 4 7 Tactical Retreats 2 | . . 2 Traps | -11 -10 -9 ------- Run | Yrd Mat Mat Traps Triggered 5 | . . 5 Indirectly . | . . . Trap Hack Attempts . | . . . Triggered . | . . . Disarmed . | . . . Reprogrammed . | . . . Reused . | . . . Traps Extracted . | . . . Installed . | . . . Triggered . | . . . Machines | -11 -10 -9 ---------- Run | Yrd Mat Mat Machines Disabled 3 | . . 3 Max in Single Turn 2 | . . 2 Machines Repaired . | . . . Machines Dismantled . | . . . Machines Sabotaged . | . . . Overloaded Fab Kills . | . . . Hacking | -11 -10 -9 --------- Run | Yrd Mat Mat Machines Accessed 1 | . . 1 Terminals 1 | . . 1 Fabricators . | . . . Repair Stations . | . . . Recycling Units . | . . . Scanalyzers . | . . . Garrison Access . | . . . Total Hacks 1 | . . 1 Successful . | . . . Failed 1 | . . 1 Catastrophic . | . . . Database Lockouts . | . . . Manual 1 | . . 1 Terminals 1 | . . 1 Fabricators . | . . . Repair Stations . | . . . Recycling Units . | . . . Scanalyzers . | . . . Garrison Access . | . . . Terminal Hacks . | . . . Fabricator Hacks . | . . . Repair Station Hacks . | . . . Recycling Unit Hacks . | . . . Scanalyzer . | . . . Garrison Access Hacks . | . . . Unauthorized Hacks . | . . . Terminals . | . . . Fabricators . | . . . Repair Stations . | . . . Recycling Units . | . . . Scanalyzers . | . . . Garrison Access . | . . . Data Cores Recovered . | . . . Used . | . . . Hacking Detections 1 | . . 1 Full Trace Events . | . . . Feedback Events . | . . . Feedback Blocked . | . . . Robot Schematics Acquired . | . . . Robots Built . | . . . Authchips . | . . . Time . | . . . Total Robot Build Rating . | . . . Part Schematics Acquired . | . . . Parts Built . | . . . Authchips . | . . . Time . | . . . Total Part Build Rating . | . . . Parts Repaired . | . . . Time . | . . . Parts Recycled . | . . . Recycled Matter . | . . . Retrieved Matter . | . . . Retrieved Components . | . . . Parts Scanalyzed . | . . . Part Schematics Acquired . | . . . Parts Damaged . | . . . Bothacking | -11 -10 -9 ------------ Run | Yrd Mat Mat Used RIF Installer . | . . . Robots Hacked . | . . . Non-combat . | . . . Combat . | . . . Robot Hacks Applied . | . . . Relay Couplers Released . | . . . Fabnet Peak Effective % . | . . . Robots Rewired . | . . . Allies Hacked . | . . . Hacks Repelled . | . . . Allies | -11 -10 -9 -------- Run | Yrd Mat Mat Total Allies . | . . . Largest Group . | . . . Highest-Rated Group . | . . . Highest-Rated Ally . | . . . Total Orders . | . . . Ally Attacks . | . . . Total Damage . | . . . Kills . | . . . Allies Corrupted . | . . . Allies Melted . | . . . Intel | -11 -10 -9 ------- Run | Yrd Mat Mat Robot Analysis Total . | . . . Derelict Logs Recovered . | . . . Drone Launches . | . . . Drone Recoveries . | . . . Exploration | -11 -10 -9 ------------- Run | Yrd Mat Mat Turns Passed 902 | 5 142 755 Spaces Moved 322 | 5 57 260 Core 6 | . . 6 Treads 296 | . 42 254 Legs 20 | 5 15 . Wheels . | . . . Hover . | . . . Flight . | . . . Fastest Speed 120 | 120 120 160 Average Speed 175 | 120 151 182 Slowest Speed 550 | 120 190 550 Overloaded Moves . | . . . Propulsion Burnouts . | . . . Robots Hopped . | . . . Cave-ins Triggered . | . . . Exploration Rate (%) 15 | 2 16 27 Regions Visited 2 Branch Regions . Pre-discovered Areas . | . . . Known Exits Taken . | . . . Unknown Exits Taken 2 | 1 1 . Scrap Searched . | . . . Spaces Dug . | . . . Terrain Destroyed . | . . . Melee . | . . . Projectile . | . . . AOE . | . . . Terrain Rammed . | . . . Walls Destroyed . | . . . Machines Disabled . | . . . Actions | -11 -10 -9 --------- Run | Yrd Mat Mat Total 532 | 4 83 445 Wait 64 | . . 64 Move 320 | 4 56 260 Hop . | . . . Pick Up 10 | . . 10 Fast Attach 13 | . 1 12 Attach 6 | . 3 3 Detach . | . . . Swap 4 | . . 4 Drop 23 | . 3 20 Fire 68 | . 20 48 Melee . | . . . Ram . | . . . Kick . | . . . Crush 24 | . . 24 Escape Stasis . | . . . Rewire . | . . . Trap . | . . . Miscellaneous . | . . . Route ------- -11/Scrapyard -10/Materials -9/Materials (discovered 2 exits: [*Min x2]) History --------- Turn | Location | Event 1 | -11/Scrapyard | Discovered new exit (range 2) 6 | -11/Scrapyard | Entered Materials 139 | -10/Materials | Discovered new exit (range 6) 148 | -10/Materials | Entered another Materials area 148 | -9/Materials | Evolved 2 slots: Utility x2 148 | -9/Materials | Discovered new exit (range 7) 296 | -9/Materials | Destroyed 7 combat bots 302 | -9/Materials | Build established: Mutant 565 | -9/Materials | Discovered new exit (range 14) 763 | -9/Materials | System corruption reached 10% 873 | -9/Materials | Core integrity fell below 50% 903 | -9/Materials | Self-destructed Last Messages --------------- 00778_ U-05 Engineer lays Concrete. 00779_ Acquired 5 matter. 00779_ U-05 Engineer lays Concrete. 00783_ ALERT: Alarm triggered, dispatching investigation squad. 00783_ U-05 Engineer lays Concrete. 00786_ Acquired Imp. Ion Engine. 00787_ U-05 Engineer lays Concrete. 00816_ System corrupted: Heat flow error (+238). 00837_ System corrupted: Heat flow error (+169). 00858_ W-16 Scout sends out distress signal. 00866_ Hrd. Medium Armor Plating destroyed. 00868_ Lgt. Treads destroyed. 00870_ Heat Sink destroyed. 00871_ System corrupted: Component data lost. 00893_ Spread Laser destroyed. 00899_ System corrupted: Component data lost. 00899_ Acquired Spread Laser. 00901_ Dropped Pulse Rifle. 00901_ Dropped Hrd. Medium Armor Plating. Map ----- +----------------------------------------------------+ | | | ?????????????????????????????????????????????????? | | ?????????????????????????????????????????????????? | | ?????????????????????????????????????????????????? | | ?????????????????????????????????????????????????? | | ?????????????????????????????????????????????????? | | ?????????????????????????????????????????????????? | | ?????????????????????????????????????????????????? | | ?????????????????????????????????????????????????? | | ?????????????????????????????????????????????????? | | ?????????????????????????????????????????????????? | | ?????????????????????????????????????????????????? | | ?????????????????????????????????????????????????? | | ?????????????????????????????????????????????????? | | ?????????????????????????????????????????????????? | | ?????????????????????????????????????????????????? | | ?????????????????????????????????????????????????? | | ????????????????????????#######??????????????????? | | ????????????????????????# #?????????????????? | | ????????????????????????# """ #?????????????????? | | ????????????????????????# """ #?????????????????? | | ???????????????########## """ #?????????????????? | | ???????????????# #] #?????????????????? | | ???????????????# # """ #?????????????????? | | ???????????????# #! """ #?????????????????? | | ???????????????# """ #@!""" #?????????????????? | | ???????????????# """"" #! #?????????????????? | | ???????????????# """"" # """ #?????????????????? | | ???????????????# """"" # """ #?????????????????? | | ???????????????# """ # """ #?????????????????? | | ???????????????# # #?????????????????? | | ???????????????#####+#####g######????????????????? | | ??????????######### #????????????????? | | ??????????# ## ! g #????????????????? | | ??????????# + w + ??????????? | | ??????????# # """ """ # ??????????? | | ??????????# # """ """ ##???#???????????? | | ??????????# # """ """ ###?????????????? | | ??????????# *%# %= ???????????? | | ??????????#=%= =%+%%* ????????????? | | ??????????# #%!% """ ????????????? | | ??????????# [ % # % " """ ???????????? | | ??????????# % ## T """ ######??????????? | | ??????????# [ ## " #???????????????? | | ??????????# ## #???????????????? | | ??????????# ## #???????????????? | | ??????????# ####### #### #???????????????? | | ??????????###????# """# #???????????????? | | ?????????????????# "# #???????????????? | | ?????????????????# !"# #???????????????? | +----------------------------------------------------+ Best States ------------- Heat Dissipation 38 Energy Generation 12 Energy Capacity 265 Matter Stores 300 Matter Capacity 300 Sight Range 18 Terrain Scan Density 10 Armor Coverage 225 Utility Shielding 33 Evasion (%) 50 Recoil Reduction 2 Item Schematics ----------------- None Robot Schematics ------------------ None Fabricated ------------ Nothing Alien Tech Used ----------------- None Achievements -------------- None Challenges ------------ None Game ------ Seed TrapTransdimensionalWarhead Manual? 0 Play Time 00:13:18 Cumulative 29.9 hours Start 2024.10.17 @ 23:16:05 End 2024.10.17 @ 23:24:06 Sessions 1 Manual Loads 0 Difficulty Rogue Special Mode None Game No. 29 Rogue 11 Adventurer 16 Explorer 2 Win Type - Total 1 Types 1/0/0/0/0/0/0/0/0 Lore% 10 Gallery% 32 Achievement% 33 Wizard Run 0 Options --------- Layout 2 ASCII 0 Keyboard 0 Movement Mouse Keybinds 1 Fullscreen 1 Font 24/Terminus Map View 50x44 Zoom Use 0% Tactical HUD 1 Map Filters NONE Filters NONE Steam 1 RUN: 47de67aa-edbb-4bc8-9937-ea566964b84b